bitfinex/quotes_SOLUSD_20250717
["timestamp","ask_amount","ask_price","bid_price","bid_amount"]
[1752754941712,8.491313,175.44,175.4,0.72]
[1752754941941,0.52,175.45,175.4,0.72]
[1752754941942,9.011313,175.45,175.4,0.72]
[1752754942144,19.9498404,175.44,175.4,0.72]
[1752754943344,5.72930468,175.46,175.41,9.211313]
[1752754943638,5.72930468,175.46,175.44,8.491313]
[1752754943845,5.72930468,175.46,175.43,8.491313]
[1752754944139,5.72930468,175.46,175.42,35.211313]
[1752754944434,5.72930468,175.46,175.42,9.211313]
[1752754944743,5.72930468,175.46,175.43,9.211313]
[1752754944912,28.46887939,175.46,175.4,0.72]
[1752754945251,28.46887939,175.46,175.4,35.211313]
[1752754945437,22.76957471,175.46,175.4,35.211313]
[1752754945741,7.1543,175.45,175.36,0.72]
[1752754946041,8.491313,175.41,175.36,0.72]
[1752754946220,9.011313,175.41,175.35,8.491313]
[1752754946422,10.127813,175.43,175.37,8.491313]
[1752754946627,10.127813,175.43,175.37,9.211313]
[1752754947244,30.38,175.44,175.34,26.06]
[1752754947245,8.491313,175.44,175.38,9.211313]
[1752754947443,5.70027931,175.43,175.39,9.211313]
[1752754947615,5.70027931,175.43,175.41,8.491313]
[1752754947821,5.70027931,175.43,175.41,9.211313]
[1752754948030,5.70027931,175.43,175.41,0.72]
[1752754948343,5.70027931,175.43,175.42,0.72]
[1752754948519,0.03,175.46,175.42,35.211313]
[1752754948725,0.03,175.46,175.45,8.491313]
[1752754949224,0.03,175.46,175.45,9.211313]
[1752754951030,0.03,175.46,175.43,0.72]
[1752754951433,0.03,175.46,175.45,8.491313]
[1752754952149,0.03,175.46,175.45,9.211313]
[1752754953143,0.03,175.46,175.45,61.95562649]
[1752754953351,0.03,175.48,175.47,26.0]
[1752754953549,0.03,175.48,175.47,34.491313]
[1752754953766,0.03,175.48,175.47,35.211313]
[1752754953963,0.03,175.48,175.47,58.09497685]
[1752754954267,0.03,175.48,175.47,52.39599697]
[1752754954637,0.03,175.48,175.47,43.90468397]
[1752754954846,0.03,175.48,175.47,52.39599697]
[1752754955562,0.03,175.48,175.47,82.23599697]
[1752754955941,0.03,175.48,175.47,1.12]
[1752754956250,0.03,175.48,175.44,0.4]
[1752754956251,0.58,175.48,175.44,0.4]
[1752754956457,9.071313,175.48,175.44,0.4]
[1752754956660,0.03,175.48,175.44,0.4]
[1752754956837,0.03,175.48,175.45,9.211313]
[1752754957043,0.03,175.48,175.46,8.491313]
[1752754957438,0.03,175.48,175.45,9.211313]
[1752754957638,0.03,175.48,175.46,9.211313]
[1752754958245,0.03,175.48,175.47,0.72]
[1752754958856,0.03,175.48,175.46,8.491313]
[1752754959048,0.03,175.48,175.46,9.211313]
[1752754960472,0.03,175.48,175.45,8.491313]
[1752754960662,9.071313,175.48,175.44,0.4]
[1752754960865,9.071313,175.48,175.42,8.891313]
[1752754961054,0.58,175.48,175.43,8.491313]
[1752754961259,0.58,175.48,175.43,9.211313]
[1752754961660,19.9752929,175.48,175.43,8.491313]
[1752754961858,19.9752929,175.48,175.42,0.4]
[1752754961859,19.9752929,175.48,175.44,9.211313]
[1752754962061,0.55,175.47,175.42,0.4]
[1752754962253,0.55,175.47,175.43,8.491313]
[1752754962452,8.491313,175.46,175.4,9.211313]
[1752754962655,8.491313,175.45,175.4,9.611313]
[1752754962857,8.491313,175.45,175.4,1.12]
[1752754963258,9.041313,175.45,175.4,1.12]
[1752754963470,10.066813,175.47,175.41,9.211313]
[1752754963661,10.066813,175.47,175.42,8.491313]
[1752754963872,19.94756639,175.46,175.42,9.211313]
[1752754964179,19.94756639,175.46,175.42,0.72]
[1752754964974,8.491313,175.45,175.4,0.72]
[1752754965180,8.491313,175.44,175.39,26.0]
[1752754965363,9.041313,175.44,175.39,26.0]
[1752754965764,9.041313,175.44,175.39,26.72]
[1752754965962,8.491313,175.42,175.37,9.211313]
[1752754966160,8.491313,175.42,175.36,0.06]
[1752754966161,9.041313,175.41,175.36,0.06]
[1752754966554,9.041313,175.4,175.36,0.06]
[1752754966755,78.29237415,175.43,175.36,8.551313]
[1752754966756,8.491313,175.41,175.36,8.551313]
[1752754966981,8.491313,175.42,175.37,9.211313]
[1752754967486,8.491313,175.42,175.37,0.72]
[1752754967658,8.491313,175.41,175.37,0.72]
[1752754967858,5.70125427,175.4,175.36,0.06]
[1752754968179,14.25131634,175.43,175.39,8.491313]
[1752754968356,14.25131634,175.43,175.4,9.211313]
[1752754968554,5.69962952,175.45,175.4,8.491313]
[1752754968755,5.69962952,175.45,175.42,8.491313]
[1752754968959,5.69962952,175.45,175.42,9.211313]
[1752754969264,19.94870333,175.45,175.41,8.491313]
[1752754969475,19.94870333,175.45,175.41,9.211313]
[1752754969952,14.24907381,175.45,175.41,9.211313]
[1752754971577,9.041313,175.44,175.39,26.0]
[1752754971883,8.491313,175.43,175.39,26.0]
[1752754972079,9.041313,175.42,175.36,9.671313]
[1752754972262,9.041313,175.42,175.36,1.18]
[1752754972463,8.491313,175.4,175.36,0.46]
[1752754972682,8.491313,175.38,175.36,0.06]
[1752754972882,8.491313,175.37,175.36,1e-08]
[1752754973092,8.491313,175.37,175.34,0.06]
[1752754973093,9.041313,175.37,175.34,1e-08]
[1752754973258,14.19419295,175.35,175.34,1e-08]
[1752754973663,14.74419295,175.35,175.34,1e-08]
[1752754973974,14.19419295,175.35,175.34,1e-08]
[1752754974377,14.74419295,175.35,175.34,1e-08]
[1752754975793,20.81539295,175.35,175.34,1e-08]
[1752754976159,37.60007692,175.35,175.34,1e-08]
[1752754976369,37.60007692,175.35,175.29,0.06]
[1752754976370,16.78468397,175.31,175.28,1e-08]
[1752754976582,8.491313,175.29,175.28,1e-08]
[1752754977062,29.84,175.3,175.28,1e-08]
[1752754977271,14.19614499,175.29,175.28,1e-08]
[1752754978363,14.74614499,175.29,175.28,1e-08]
[1752754979388,5.70483199,175.29,175.28,1e-08]
[1752754979577,14.74614499,175.29,175.28,1e-08]
[1752754980997,14.19614499,175.29,175.28,1e-08]
[1752754981571,14.74614499,175.29,175.28,1e-08]
[1752754982106,14.19614499,175.29,175.28,1e-08]
[1752754982306,5.70483199,175.29,175.28,0.72000001]
[1752754982602,22.75162711,175.32,175.28,0.72000001]
[1752754982603,5.70418116,175.31,175.28,0.72000001]
[1752754982809,8.491313,175.29,175.28,1e-08]
[1752754983094,44.03614499,175.29,175.28,1e-08]
[1752754983295,44.58614499,175.29,175.28,1e-08]
[1752754983710,87.37082896,175.29,175.28,1e-08]
[1752754984274,23.17698397,175.28,175.21,0.06]
[1752754984493,8.491313,175.22,175.21,1e-08]
[1752754984708,29.84,175.23,175.21,1e-08]
[1752754984888,38.331313,175.23,175.21,1e-08]
[1752754985197,14.19842406,175.22,175.21,1e-08]
[1752754985506,35.54645971,175.24,175.22,0.72]
[1752754985679,29.84,175.23,175.21,1e-08]
[1752754985874,38.331313,175.23,175.21,1e-08]
[1752754986076,8.491313,175.22,175.21,1e-08]
[1752754987179,14.19842406,175.22,175.21,1e-08]
[1752754987672,44.03842406,175.22,175.21,1e-08]
[1752754988070,14.19842406,175.22,175.21,1e-08]
[1752754988271,44.03842406,175.22,175.21,1e-08]
[1752754988679,44.58842406,175.22,175.21,1e-08]
[1752754988893,44.03842406,175.22,175.21,1e-08]
[1752754989101,35.54711106,175.22,175.21,1e-08]
[1752754989911,44.03842406,175.22,175.21,1e-08]
[1752754990593,35.54711106,175.22,175.21,1e-08]
[1752754990802,5.70711106,175.22,175.21,0.70000001]
[1752754990993,35.54711106,175.22,175.21,0.70000001]
[1752754991196,29.84,175.22,175.21,0.70000001]
[1752754991413,35.54711106,175.22,175.21,0.70000001]
[1752754992108,35.54711106,175.22,175.21,1e-08]
[1752754993910,5.70711106,175.22,175.21,1e-08]
[1752754994104,29.84,175.22,175.21,0.70000001]
[1752754994410,38.331313,175.22,175.21,1e-08]
[1752754994808,38.881313,175.22,175.21,1e-08]
[1752754995111,38.331313,175.22,175.2,1e-08]
[1752754995286,14.74874979,175.21,175.2,1e-08]
[1752754995487,18.28498397,175.2,175.18,1e-08]
[1752754995682,38.331313,175.19,175.16,1e-08]
[1752754995885,8.491313,175.17,175.16,1e-08]
[1752754996086,38.331313,175.17,175.16,1e-08]
[1752754996307,38.881313,175.17,175.16,1e-08]
[1752754996716,55.66599697,175.17,175.16,1e-08]
[1752754996996,38.331313,175.17,175.16,1e-08]
[1752754997507,44.04005308,175.17,175.16,1e-08]
[1752754997698,5.70874008,175.17,175.16,1e-08]
[1752754998009,35.54874008,175.17,175.16,1e-08]
[1752754998211,5.70874008,175.17,175.16,0.70000001]
[1752754998415,29.84,175.17,175.16,0.70000001]
[1752754998998,5.70848627,175.18,175.16,0.70000001]
[1752754999305,35.54848627,175.18,175.17,0.7]
[1752754999707,35.54848627,175.18,175.16,1e-08]
[1752755000028,35.54848627,175.18,175.17,0.7]
[1752755000222,5.70848627,175.18,175.17,0.7]
[1752755000522,6.9778,175.23,175.17,0.7]
[1752755000523,8.491313,175.25,175.17,9.191313]
[1752755000694,5.70548296,175.27,175.23,8.491313]
[1752755000902,5.70548296,175.27,175.24,0.7]
[1752755001102,29.84,175.26,175.25,0.7]
[1752755001621,29.84,175.26,175.23,9.191313]
[1752755001808,5.70613409,175.25,175.24,0.7]
[1752755002635,29.84,175.26,175.24,9.191313]
[1752755002926,29.84,175.26,175.25,9.191313]
[1752755003232,35.54580851,175.26,175.25,0.7]
[1752755003422,35.54580851,175.26,175.23,8.491313]
[1752755003597,35.54580851,175.26,175.25,0.7]
[1752755004002,29.84,175.27,175.25,9.191313]
[1752755004220,29.84,175.27,175.26,0.7]
[1752755004455,29.84,175.27,175.26,9.191313]
[1752755004657,35.5748885,175.29,175.26,9.191313]
[1752755004820,35.5748885,175.29,175.27,0.7]
[1752755005217,35.5748885,175.29,175.28,0.7]
[1752755005416,0.03,175.29,175.28,9.191313]
[1752755005731,5.73483199,175.29,175.26,35.191313]
[1752755006048,5.73483199,175.29,175.24,0.7]
[1752755006230,29.84,175.28,175.25,0.7]
[1752755007415,5.73483199,175.29,175.26,9.191313]
[1752755007621,35.57483199,175.29,175.27,0.7]
[1752755008035,35.57483199,175.29,175.28,9.191313]
[1752755008334,35.57483199,175.29,175.28,0.7]
[1752755008513,44.06614499,175.29,175.23,0.7]
[1752755008719,44.06614499,175.29,175.23,9.191313]
[1752755008720,44.61614499,175.29,175.23,9.191313]
[1752755009022,44.06614499,175.29,175.23,9.191313]
[1752755009438,58.32822497,175.29,175.23,9.191313]
[1752755010747,8.491313,175.28,175.23,0.7]
[1752755010935,29.82,175.27,175.23,0.7]
[1752755011837,29.82,175.27,175.24,9.191313]
[1752755012317,29.82,175.27,175.25,0.7]
[1752755012318,5.70580851,175.26,175.25,0.7]
[1752755012832,5.70580851,175.26,175.23,0.7]
[1752755013042,38.311313,175.25,175.2,0.7]
[1752755013551,29.82,175.25,175.19,0.4]
[1752755013758,29.82,175.25,175.2,9.191313]
[1752755014049,29.82,175.25,175.21,0.7]
[1752755014349,19.97260899,175.24,175.2,0.7]
[1752755014553,29.82,175.23,175.2,9.191313]
[1752755015052,29.82,175.23,175.2,0.7]
[1752755015251,29.82,175.23,175.19,0.4]
[1752755015421,29.82,175.23,175.19,9.591313]
[1752755015958,38.311313,175.23,175.19,0.4]
[1752755016244,38.861313,175.23,175.19,0.4]
[1752755016439,5.70711106,175.22,175.19,0.4]
[1752755016634,29.82,175.21,175.19,0.4]
[1752755016842,29.82,175.21,175.17,35.191313]
[1752755017055,29.82,175.21,175.18,0.06]
[1752755017421,8.491313,175.2,175.18,0.06]
[1752755017652,29.82,175.19,175.18,0.06]
[1752755018151,19.97488871,175.22,175.18,9.251313]
[1752755018362,0.55,175.24,175.18,9.251313]
[1752755018363,5.70776255,175.2,175.19,0.7]
[1752755018659,5.7075439,175.21,175.19,9.191313]
[1752755018852,35.52716565,175.22,175.2,9.191313]
[1752755019044,35.52716565,175.22,175.21,0.7]
[1752755019245,35.52716565,175.22,175.2,8.491313]
[1752755019449,35.52716565,175.22,175.18,26.76]
[1752755019629,44.56847865,175.22,175.18,0.06]
[1752755019953,58.2862563,175.22,175.18,0.06]
[1752755020452,9.041313,175.21,175.18,0.06]
[1752755020652,29.82,175.2,175.18,0.06]
[1752755021141,30.37,175.2,175.18,0.06]
[1752755021344,38.861313,175.2,175.18,0.06]
[1752755021725,8.491313,175.19,175.18,0.06]
[1752755021951,9.041313,175.19,175.18,0.06]
[1752755022254,9.041313,175.19,175.16,1e-08]
[1752755022457,14.20005308,175.17,175.16,1e-08]
[1752755022864,14.75005308,175.17,175.16,1e-08]
[1752755024164,35.52874008,175.17,175.16,1e-08]
[1752755024333,19.97795247,175.2,175.16,8.49131301]
[1752755024527,29.82,175.19,175.16,0.69000001]
[1752755024854,29.82,175.19,175.17,0.69]
[1752755025238,29.82,175.19,175.16,8.49131301]
[1752755025663,29.82,175.19,175.16,9.18131301]
[1752755026659,5.7084142,175.18,175.16,9.18131301]
[1752755028075,5.7084142,175.18,175.17,0.69]
[1752755029066,5.7084142,175.18,175.16,8.49131301]
[1752755029273,5.7084142,175.18,175.16,9.18131301]
[1752755029567,35.5284142,175.18,175.16,9.58131301]
[1752755030162,35.5284142,175.18,175.17,9.181313]
[1752755030404,29.36932949,175.23,175.17,9.181313]
[1752755030405,5.70711106,175.22,175.17,9.581313]
[1752755030577,5.70711106,175.22,175.21,8.491313]
[1752755030870,15.246313,175.27,175.21,9.181313]
[1752755030871,29.82,175.24,175.21,9.181313]
[1752755031069,35.52613409,175.25,175.23,8.491313]
[1752755031275,29.82,175.25,175.24,9.181313]
[1752755031445,35.52590227,175.26,175.24,8.491313]
[1752755031650,35.52590227,175.26,175.25,9.181313]
[1752755031973,35.52590227,175.26,175.22,26.0]
[1752755032351,58.83173655,175.26,175.2,26.0]
[1752755032566,9.041313,175.25,175.2,26.0]
[1752755032767,8.491313,175.22,175.2,26.0]
[1752755033064,29.82,175.21,175.2,26.0]
[1752755033247,29.82,175.21,175.16,8.49131301]
[1752755033248,36.07743679,175.21,175.16,8.49131301]
[1752755033449,58.83734176,175.21,175.16,1e-08]
[1752755033755,0.55,175.2,175.16,1e-08]
[1752755034071,29.82,175.19,175.16,1e-08]
[1752755034457,0.55,175.18,175.16,1e-08]
[1752755034658,26.46742876,175.21,175.17,35.181313]
[1752755034659,5.70743679,175.21,175.17,35.181313]
[1752755034877,8.129,175.3,175.19,26.0]
[1752755035069,158.13,175.37,175.24,8.491313]
[1752755035070,5.70515746,175.28,175.24,8.491313]
[1752755035267,5.70515746,175.28,175.22,26.0]
[1752755035268,5.70450656,175.3,175.25,9.181313]
[1752755035573,5.70450656,175.3,175.25,26.69]
[1752755035872,0.55,175.28,175.25,8.491313]
[1752755036173,0.55,175.28,175.24,8.491313]
[1752755036375,30.37,175.28,175.22,0.69]
[1752755036552,38.861313,175.28,175.22,9.181313]
[1752755036753,9.041313,175.27,175.23,26.0]
[1752755036979,9.041313,175.26,175.2,8.491313]
[1752755037272,14.19744709,175.25,175.21,26.0]
[1752755037485,5.70613409,175.25,175.22,35.181313]
[1752755037656,5.70548296,175.27,175.23,0.69]
[1752755037852,5.70548296,175.27,175.23,8.491313]
[1752755038056,5.70548296,175.27,175.22,34.491313]
[1752755038268,0.03,175.29,175.25,8.491313]
[1752755038471,0.03,175.29,175.28,8.491313]
[1752755038661,0.03,175.29,175.28,9.181313]
[1752755038975,0.03,175.35,175.31,26.0]
[1752755039176,0.03,175.35,175.34,8.491313]
[1752755039354,0.03,175.35,175.32,0.69]
[1752755039554,0.03,175.35,175.33,8.491313]
[1752755039754,0.03,175.35,175.32,0.69]
[1752755039980,0.03,175.35,175.33,8.491313]
[1752755040276,0.03,175.35,175.34,8.491313]
[1752755040678,9.101313,175.35,175.28,0.69]
[1752755040862,8.491313,175.33,175.27,26.0]
[1752755041052,8.491313,175.3,175.25,29.8]
[1752755041258,5.70515746,175.28,175.24,8.491313]
[1752755041460,14.77647046,175.28,175.21,30.49]
[1752755041660,14.19647046,175.28,175.21,30.49]
[1752755041858,5.70515746,175.28,175.23,34.491313]
[1752755042156,9.071313,175.27,175.2,9.181313]
[1752755042677,19.96805111,175.28,175.23,34.491313]
[1752755042980,5.70515746,175.28,175.25,8.491313]
[1752755043160,5.70515746,175.28,175.25,0.69]
[1752755043365,5.7038558,175.32,175.27,8.491313]
[1752755043557,5.7038558,175.32,175.29,34.491313]
[1752755043862,0.03,175.35,175.31,8.491313]
[1752755044176,0.03,175.35,175.33,8.491313]
[1752755044384,0.03,175.35,175.34,8.491313]
[1752755044562,0.03,175.35,175.33,0.69]
[1752755044878,5.73287995,175.35,175.31,8.491313]
[1752755045057,5.73287995,175.35,175.31,12.68162049]
[1752755045258,0.03,175.35,175.32,0.69]
[1752755045463,0.03,175.35,175.33,0.69]
[1752755045661,0.03,175.35,175.32,0.69]
[1752755045976,0.03,175.35,175.32,13.37162049]
[1752755046355,0.03,175.35,175.33,13.37162049]
[1752755046783,0.03,175.35,175.34,0.69]
[1752755047973,0.03,175.35,175.34,13.37162049]
[1752755049966,0.03,175.35,175.34,0.69]
[1752755050176,0.03,175.35,175.34,13.37162049]
[1752755050390,0.03,175.35,175.34,43.17162049]
[1752755050694,0.03,175.35,175.29,17.18468397]
[1752755050695,0.03,175.35,175.33,26.0]
[1752755050876,0.03,175.35,175.34,26.0]
[1752755051569,0.03,175.35,175.33,26.0]
[1752755051762,0.03,175.35,175.33,26.7]
[1752755051964,0.03,175.35,175.33,38.68162049]
[1752755052187,0.03,175.35,175.34,0.7]
[1752755052862,0.03,175.35,175.33,38.68162049]
[1752755053072,0.03,175.35,175.33,26.0]
[1752755053475,0.03,175.35,175.33,26.7]
[1752755053662,0.03,175.35,175.33,38.68162049]
[1752755053863,0.03,175.35,175.34,0.7]
[1752755054164,0.03,175.35,175.34,13.38162049]
[1752755054466,0.03,175.35,175.34,39.38162049]
[1752755054684,0.03,175.35,175.34,56.16630446]
[1752755054868,0.03,175.35,175.34,85.94630446]
[1752755055798,0.03,175.35,175.34,69.16162049]
[1752755056369,0.03,175.35,175.34,56.48]
[1752755056590,0.03,175.35,175.32,13.38162049]
[1752755056775,0.03,175.35,175.32,29.78]
[1752755056986,12.71162049,175.35,175.32,29.78]
[1752755057192,12.71162049,175.35,175.32,26.0]
[1752755057566,5.70353048,175.33,175.32,26.0]
[1752755057799,5.70353048,175.33,175.29,29.78]
[1752755058087,5.70353048,175.33,175.32,26.0]
[1752755058288,18.38515097,175.33,175.26,6.4317]
[1752755058464,12.68162049,175.31,175.28,26.0]
[1752755058667,12.68162049,175.29,175.26,29.78]
[1752755058868,19.96235669,175.33,175.24,0.7]
[1752755058869,12.68162049,175.28,175.24,0.7]
[1752755059091,12.68162049,175.28,175.23,0.13837402]
[1752755059092,12.68162049,175.27,175.23,0.13837402]
[1752755059282,12.68162049,175.27,175.25,26.0]
[1752755059479,12.68162049,175.28,175.25,26.0]
[1752755059693,5.70548296,175.27,175.26,26.0]
[1752755059896,32.75081087,175.27,175.23,0.13837402]
[1752755060099,12.68162049,175.24,175.23,0.13837402]
[1752755060877,12.68162049,175.26,175.23,0.13837402]
[1752755061099,12.68162049,175.25,175.23,0.13837402]
[1752755061396,32.65081087,175.27,175.23,0.89837402]
[1752755062194,32.65081087,175.27,175.23,0.19837402]
[1752755062195,12.68162049,175.26,175.23,0.19837402]
[1752755062375,12.68162049,175.25,175.23,0.19837402]
[1752755062709,12.68162049,175.24,175.23,0.19837402]
[1752755063571,19.96919038,175.27,175.23,0.19837402]
[1752755063786,12.68162049,175.24,175.23,0.19837402]
[1752755065105,8.52576842,175.24,175.23,0.19837402]
[1752755065686,14.23222813,175.24,175.23,0.19837402]
[1752755066187,14.81222813,175.24,175.23,0.19837402]
[1752755066499,14.23222813,175.24,175.23,0.19837402]
[1752755067082,14.81222813,175.24,175.23,0.19837402]
[1752755068704,8.52576842,175.2,175.16,26.00000001]
[1752755069080,8.52576842,175.21,175.16,26.00000001]
[1752755069687,19.97260899,175.24,175.17,9.22576842]
[1752755069884,5.70645971,175.24,175.2,8.52576842]
[1752755070109,8.52576842,175.22,175.19,26.0]
[1752755070487,8.52576842,175.21,175.18,26.0]
[1752755070798,5.70776255,175.2,175.18,26.0]
[1752755070995,5.70776255,175.2,175.18,0.4]
[1752755071209,5.70776255,175.2,175.18,26.4]
[1752755071909,5.70711106,175.22,175.19,9.22576842]
[1752755072112,53.59518397,175.28,175.19,9.22576842]
[1752755072113,5.70645971,175.24,175.21,8.52576842]
[1752755072413,5.70580851,175.26,175.22,0.7]
[1752755072598,5.70580851,175.26,175.23,0.7]
[1752755073003,5.70580851,175.26,175.21,9.22576842]
[1752755073187,5.70580851,175.26,175.21,8.52576842]
[1752755073510,5.70580851,175.26,175.22,0.7]
[1752755073720,5.70580851,175.26,175.16,1e-08]
[1752755073721,8.52576842,175.23,175.16,1e-08]
[1752755074016,8.52576842,175.19,175.16,1e-08]
[1752755074215,8.52576842,175.21,175.16,0.70000001]
[1752755074420,8.52576842,175.21,175.17,0.7]
[1752755074815,8.52576842,175.21,175.16,1e-08]
[1752755075116,5.70776255,175.2,175.16,0.70000001]
[1752755076081,5.70776255,175.2,175.16,1e-08]
[1752755076278,5.70776255,175.2,175.17,0.7]
[1752755076505,5.70776255,175.2,175.18,0.7]
[1752755076686,5.70776255,175.2,175.19,0.7]
[1752755076881,14.23320521,175.21,175.19,0.7]
[1752755077081,14.23320521,175.21,175.16,0.40000001]
[1752755077082,5.70743679,175.21,175.16,0.40000001]
[1752755077312,5.70743679,175.21,175.16,1.10000001]
[1752755077604,28.50179718,175.21,175.16,0.40000001]
[1752755077807,14.23320521,175.21,175.17,0.7]
[1752755078206,14.23320521,175.21,175.17,0.4]
[1752755078512,8.52576842,175.19,175.17,0.4]
[1752755078716,6.28743679,175.21,175.16,1e-08]
[1752755078717,8.52576842,175.2,175.16,1e-08]
[1752755079015,14.26859197,175.21,175.16,0.70000001]
[1752755079308,22.79436039,175.21,175.17,0.7]
[1752755079681,5.70711106,175.22,175.18,0.71]
[1752755080006,8.52576842,175.21,175.18,0.71]
[1752755080503,8.52576842,175.2,175.16,26.40000001]
[1752755080707,8.52576842,175.2,175.16,27.11000001]
[1752755081106,14.23385678,175.19,175.16,27.11000001]
[1752755081306,5.70808836,175.19,175.16,27.11000001]
[1752755082607,8.52576842,175.21,175.17,0.71]
[1752755082954,8.52576842,175.23,175.17,9.23576842]
[1752755083099,8.52576842,175.23,175.17,8.98576842]
[1752755083311,19.97260899,175.24,175.18,0.71]
[1752755083500,28.49837741,175.24,175.19,8.52576842]
[1752755083811,5.70645971,175.24,175.2,0.71]
[1752755084008,14.23222813,175.24,175.2,0.71]
[1752755084307,5.70645971,175.24,175.21,0.71]
[1752755084812,14.23222813,175.24,175.19,0.71]
[1752755085498,14.23222813,175.24,175.2,0.71]
[1752755086513,5.70645971,175.24,175.2,0.71]
[1752755086714,5.70645971,175.24,175.19,8.52576842]
[1752755086901,5.70645971,175.24,175.21,0.71]
[1752755087300,0.58,175.23,175.18,8.52576842]
[1752755087494,14.23222813,175.24,175.19,9.23576842]
[1752755088020,14.23222813,175.24,175.2,0.71]
[1752755088200,5.70645971,175.24,175.21,0.71]
[1752755088611,8.52576842,175.22,175.17,29.86]
[1752755088806,8.52576842,175.2,175.17,0.06]
[1752755089110,8.52576842,175.18,175.17,0.06]
[1752755089810,0.58,175.21,175.17,0.06]
[1752755090008,8.52576842,175.18,175.17,0.06]
[1752755090392,9.10576842,175.18,175.17,0.06]
[1752755090598,14.81418262,175.18,175.16,1e-08]
[1752755090910,38.90576842,175.17,175.16,1e-08]
[1752755092703,44.6145085,175.17,175.16,1e-08]
[1752755094494,16.78468397,175.16,175.11,0.1]
[1752755094790,14.23613845,175.12,175.11,0.1]
[1752755095194,5.71037003,175.12,175.11,0.81]
[1752755096123,14.23553341,175.14,175.11,0.81]
[1752755096304,5.70976499,175.14,175.11,0.81]
[1752755096496,14.23553341,175.14,175.11,0.81]
[1752755096697,14.23553341,175.14,175.11,0.1]
[1752755097707,5.70976499,175.14,175.12,0.71]
[1752755098814,5.70976499,175.14,175.13,0.71]
[1752755099208,5.70976499,175.14,175.11,0.1]
[1752755099407,5.70976499,175.14,175.12,0.71]
[1752755100218,5.70944723,175.15,175.13,0.71]
[1752755100518,5.70711106,175.22,175.14,35.23576842]
[1752755100721,5.70671714,175.24,175.17,34.52576842]
[1752755100898,5.70671714,175.24,175.19,8.52576842]
[1752755101096,14.23248556,175.24,175.2,0.71]
[1752755101423,8.52576842,175.21,175.16,26.71]
[1752755101817,8.52576842,175.21,175.16,26.0]
[1752755102028,42.78468397,175.28,175.2,8.52576842]
[1752755102029,8.52576842,175.28,175.2,8.52576842]
[1752755102239,5.70483199,175.29,175.24,8.52576842]
[1752755102547,8.52576842,175.26,175.22,0.71]
[1752755102717,8.52576842,175.27,175.23,0.71]
[1752755103642,14.23060041,175.29,175.24,0.71]
[1752755103849,8.52576842,175.28,175.22,0.71]
[1752755104017,14.23060041,175.29,175.23,0.71]
[1752755104221,8.52576842,175.28,175.23,0.71]
[1752755104749,8.52576842,175.28,175.24,0.71]
[1752755105044,14.23060041,175.29,175.25,0.71]
[1752755105645,0.58,175.28,175.22,26.0]
[1752755105840,44.03060041,175.29,175.23,9.23576842]
[1752755106157,8.52576842,175.25,175.22,26.0]
[1752755106444,35.50483199,175.29,175.23,0.71]
[1752755106653,14.23060041,175.29,175.23,9.23576842]
[1752755106821,8.52576842,175.28,175.23,0.71]
[1752755107022,8.52576842,175.28,175.19,52.31266791]
[1752755107023,8.52576842,175.25,175.2,0.71]
[1752755107243,5.70678536,175.23,175.21,26.0]
[1752755107437,5.70653714,175.24,175.21,26.0]
[1752755107639,5.70613385,175.26,175.22,0.71]
[1752755107820,5.70613385,175.26,175.23,0.71]
[1752755108120,14.23190227,175.26,175.21,0.71]
[1752755108323,5.70613385,175.26,175.21,0.71]